bitfinex-derivatives/quotes_SOLF0:USTF0_20241002
["timestamp","ask_amount","ask_price","bid_price","bid_amount"]
[1727835517116,1.12982494,146.1,146.05,14.81]
[1727835517322,1.12982494,146.09,146.05,14.81]
[1727835517517,2.7378,146.14,146.11,2.7383]
[1727835517719,1.12979236,146.13,146.11,2.7383]
[1727835518121,1.12979236,146.13,146.1,2.7384]
[1727835518724,3.86779236,146.13,146.1,2.7384]
[1727835519032,1.12979236,146.12,146.05,14.81]
[1727835519319,14.81,146.14,146.03,0.12502]
[1727835519320,3.86819236,146.11,146.03,14.93502]
[1727835519522,1.12979236,146.1,146.07,2.7389]
[1727835520415,1.12979236,146.1,146.03,14.93502]
[1727835520621,1.12979236,146.1,146.08,2.7389]
[1727835520827,1.12979236,146.1,146.03,18.37354984]
[1727835521025,1.12979236,146.09,146.03,18.37354984]
[1727835521224,2.7382,146.12,146.08,2.7387]
[1727835521427,3.86816499,146.11,146.08,2.7387]
[1727835521725,1.12986499,146.1,146.08,2.7387]
[1727835522116,1.1298641,146.09,146.08,2.7387]
[1727835522320,1.1298641,146.09,146.07,2.739]
[1727835522522,1.1298641,146.08,146.07,2.739]
[1727835522831,1.1298641,146.08,146.06,2.7392]
[1727835523020,1.1298641,146.07,146.05,14.81]
[1727835523215,1.1298641,146.06,146.05,14.81]
[1727835523424,1.12983274,146.12,146.1,2.7385]
[1727835523625,1.12983287,146.11,146.1,2.7385]
[1727835523930,3.86793287,146.12,146.08,2.7387]
[1727835524128,1.12983287,146.11,146.08,2.7387]
[1727835525923,1.12983287,146.11,146.05,14.81]
[1727835526127,1.12983287,146.11,146.09,2.7386]
[1727835526735,1.12983287,146.11,146.05,14.81]
[1727835526929,2.7383,146.11,146.08,2.7388]
[1727835527236,1.12983287,146.1,146.05,14.81]
[1727835527426,1.12983287,146.13,146.05,14.81]
[1727835527627,1.12983287,146.12,146.05,14.81]
[1727835527931,1.12983287,146.11,146.05,14.81]
[1727835528124,1.12983287,146.1,146.08,2.7387]
[1727835528330,1.12983287,146.09,146.08,2.7387]
[1727835528630,1.12983287,146.11,146.08,2.7387]
[1727835528820,1.12983287,146.1,146.08,2.7387]
[1727835529024,1.12983287,146.09,146.08,2.7387]
[1727835529228,1.12983287,146.1,146.08,2.7387]
[1727835529427,2.7383,146.11,146.08,2.7387]
[1727835529428,1.12983287,146.09,146.08,2.7387]
[1727835529630,2.7383,146.11,146.08,2.7387]
[1727835529832,1.12985953,146.1,146.08,2.7387]
[1727835530337,1.12985953,146.09,146.08,2.7387]
[1727835530525,1.12985926,146.11,146.09,2.7387]
[1727835530730,1.1298646,146.1,146.09,2.7387]
[1727835530932,1.1298646,146.11,146.09,2.7387]
[1727835531231,1.1298646,146.1,146.09,2.7387]
[1727835531434,1.1298646,146.11,146.09,2.7387]
[1727835531627,1.1298646,146.1,146.09,2.7387]
[1727835531829,1.1298646,146.11,146.09,2.7387]
[1727835532035,1.1298646,146.1,146.09,2.7387]
[1727835532238,1.1298646,146.11,146.09,2.7387]
[1727835532433,1.1298646,146.1,146.09,2.7387]
[1727835532737,1.1298646,146.11,146.09,2.7387]
[1727835532931,1.1298646,146.1,146.09,2.7387]
[1727835533231,1.1298646,146.11,146.09,2.7387]
[1727835533535,1.1298646,146.1,146.09,2.7387]
[1727835533731,1.1298646,146.1,146.05,14.81]
[1727835533927,14.81,146.14,146.08,2.7387]
[1727835534128,1.12986441,146.13,146.08,2.7387]
[1727835534325,2.7384,146.11,146.08,2.7387]
[1727835534529,1.12986509,146.1,146.08,2.7387]
[1727835536237,1.12986509,146.1,146.03,14.93502]
[1727835536437,2.7389,146.08,146.05,2.7393]
[1727835536739,1.12986509,146.07,146.05,2.7393]
[1727835537339,3.86896509,146.07,146.04,2.7395]
[1727835537534,1.12986509,146.06,146.04,2.7395]
[1727835537833,2.7391,146.07,146.04,2.7395]
[1727835538034,1.12997553,146.06,146.04,2.7395]
[1727835538936,1.12997553,146.06,146.03,0.12502]
[1727835539141,1.12997553,146.05,146.03,2.86472]
[1727835539441,1.12997553,146.05,146.03,0.12502]
[1727835539634,1.12997553,146.04,146.03,0.12502]
[1727835539830,2.7393,146.06,146.03,0.12502]
[1727835540033,3.49871384,146.08,146.03,0.12502]
[1727835540240,14.81,146.08,146.03,0.12502]
[1727835540439,3.44803266,146.07,146.03,0.12502]
[1727835540643,2.7394,146.06,146.03,0.12502]
[1727835542442,2.7389,146.08,146.05,2.7394]
[1727835543044,2.7392,146.06,146.03,2.86472]
[1727835543849,2.7392,146.06,146.03,0.12502]
[1727835544651,2.7395,146.05,146.03,0.12502]
[1727835544855,14.81,146.06,146.03,0.12502]
[1727835545536,14.81,146.06,145.99,2.7405]
[1727835545947,14.81,146.05,145.98,81.02873654]
[1727835546143,2.6716,146.04,145.98,81.02873654]
[1727835546341,14.81,146.03,145.98,81.02873654]
[1727835546545,2.7401,146.02,145.98,81.02873654]
[1727835546740,14.81,146.03,145.97,0.12502]
[1727835546946,14.81,146.01,145.97,0.12502]
[1727835547140,2.7404,146.0,145.97,0.12502]
[1727835547347,14.81,146.01,145.97,0.12502]
[1727835547949,2.7405,146.0,145.97,0.12502]
[1727835548455,2.7403,146.01,145.98,2.7407]
[1727835549052,2.7406,145.99,145.97,0.12502]
[1727835550252,2.7404,146.0,145.97,2.86592]
[1727835551250,14.81,146.02,145.97,0.12502]
[1727835551455,2.7406,145.99,145.97,0.12502]
[1727835553849,14.81,146.01,145.97,0.12502]
[1727835554047,14.81,145.98,145.91,0.12502]
[1727835554853,14.81,146.0,145.91,14.93502]
[1727835555051,2.7404,146.0,145.96,2.741]
[1727835555247,14.81,146.02,145.93,14.81]
[1727835555853,2.7407,145.99,145.95,2.7412]
[1727835557353,2.7407,145.98,145.95,2.7412]
[1727835558059,2.7405,146.0,145.96,2.741]
[1727835558357,14.81,146.02,145.96,2.741]
[1727835558851,2.7405,146.0,145.93,14.81]
[1727835559159,14.81,146.0,145.91,14.93502]
[1727835560357,1.4,146.01,145.93,14.81]
[1727835560854,4.1403,146.01,145.93,14.81]
[1727835561252,1.4,146.01,145.93,14.81]
[1727835561453,2.7405,146.0,145.93,14.81]
[1727835562348,2.7405,146.0,145.97,2.7409]
[1727835563150,2.7405,146.0,145.93,14.81]
[1727835563366,2.7405,146.0,145.96,2.741]
[1727835564566,2.7405,146.0,145.97,2.7409]
[1727835565649,12.2205,146.0,145.97,2.7409]
[1727835566255,2.7407,145.99,145.96,2.7411]
[1727835569467,1.4,146.01,145.95,9.48]
[1727835569665,10.98382,146.03,145.99,9.48]
[1727835569869,9.60502,146.03,145.99,9.48]
[1727835570367,0.12502,146.03,146.0,2.7403]
[1727835570767,0.12502,146.03,146.0,9.48]
[1727835571066,0.12502,146.03,146.02,12.22]
[1727835571669,0.12502,146.03,146.02,2.74]
[1727835574162,0.12502,146.03,146.01,2.7401]
[1727835575758,0.12502,146.03,145.98,14.79]
[1727835575963,0.12502,146.03,146.02,2.74]
[1727835576166,0.12502,146.03,145.98,14.79]
[1727835576469,0.12502,146.03,146.01,2.7401]
[1727835577471,0.12502,146.03,145.98,14.79]
[1727835578070,0.12502,146.03,146.01,2.74]
[1727835578866,0.12502,146.03,146.02,2.74]
[1727835579265,0.12502,146.03,145.98,14.79]
[1727835579967,0.12502,146.03,145.96,81.0426354]
[1727835580774,2.7403,146.01,145.97,2.7407]
[1727835581270,2.7403,146.01,145.98,2.7407]
[1727835582575,2.7403,146.01,145.97,2.7408]
[1727835585475,0.12502,146.03,145.96,95.8326354]
[1727835585671,0.12502,146.03,145.98,14.79]
[1727835586072,0.12502,146.03,146.02,2.74]
[1727835587780,1.3955,146.08,146.02,3.41757263]
[1727835587973,1.3955,146.08,146.0,14.79]
[1727835587974,0.12502,146.09,146.05,14.79]
[1727835588877,0.12502,146.09,146.08,2.7389]
[1727835591676,0.12502,146.09,146.07,2.739]
[1727835591875,0.12502,146.09,146.05,14.79]
[1727835592673,0.12502,146.09,146.08,2.7389]
[1727835592884,2.89782,146.15,146.07,14.79]
[1727835593083,2.89782,146.15,146.09,14.79]
[1727835593774,5.63552,146.15,146.1,2.7385]
[1727835594078,2.89782,146.15,146.1,2.7385]
[1727835594278,2.89782,146.15,146.08,14.79]
[1727835594682,14.79,146.14,146.06,14.79]
[1727835596389,14.79,146.14,146.09,2.7386]
[1727835596990,2.7381,146.13,146.09,2.7386]
[1727835597886,2.7381,146.12,146.09,2.7386]
[1727835598689,2.7381,146.12,146.04,0.1257]
[1727835598690,2.738,146.13,146.07,14.79]
[1727835598990,2.738,146.13,146.1,2.7385]
[1727835599285,2.7377,146.14,146.07,14.79]
[1727835599481,2.89782,146.15,146.11,2.7382]
[1727835599675,5.63542,146.15,146.11,2.7382]
[1727835600279,2.89782,146.15,146.12,2.738]
[1727835600879,5.63542,146.15,146.11,2.7382]
[1727835601693,2.89782,146.15,146.07,14.79]
[1727835601885,6.391674,146.15,146.1,2.7384]
[1727835602187,2.89782,146.15,146.1,2.7384]
[1727835602586,17.68782,146.15,146.08,2.7388]
[1727835602786,14.79,146.13,146.04,14.79]
[1727835602991,14.79,146.13,146.03,0.48752]
[1727835602992,16.29382,146.15,146.07,14.79]
[1727835603383,4.24152,146.15,146.07,14.79]
[1727835603588,4.24152,146.15,146.03,0.48752]
[1727835603589,1.50382,146.15,146.09,14.79]
[1727835603886,0.12502,146.15,146.14,2.7377]
[1727835605390,0.12502,146.15,146.13,2.7379]
[1727835606693,0.12502,146.15,146.14,2.7377]
[1727835612291,0.12502,146.15,146.12,2.738]
[1727835613595,0.12502,146.15,146.11,14.79]
[1727835613899,0.12502,146.15,146.14,2.7377]
[1727835619611,0.12502,146.15,146.14,12.1977]
[1727835620604,1.3082,146.2,146.18,2.7368]
[1727835620808,1.3082,146.2,146.18,12.1968]
[1727835621211,1.3082,146.2,146.18,9.46]
[1727835621504,1.3082,146.2,146.19,2.7368]
[1727835621709,1.3082,146.2,146.18,9.46]
[1727835622001,1.3082,146.2,146.18,12.1969]
[1727835622398,1.3082,146.2,146.18,2.7369]
[1727835622902,1.3082,146.2,146.18,2.7368]
[1727835623207,1.3082,146.2,146.18,9.46]
[1727835623421,0.12502,146.21,146.2,2.7366]
[1727835623826,0.12502,146.21,146.17,14.78]
[1727835624217,0.12502,146.21,146.19,2.7368]
[1727835625510,0.12502,146.21,146.17,14.78]
[1727835625718,0.12502,146.21,146.2,2.7366]
[1727835627220,0.12502,146.21,146.15,14.78]
[1727835627720,0.12502,146.21,146.18,2.7368]
[1727835627922,0.12502,146.21,146.15,14.78]
[1727835628225,0.12502,146.21,146.17,14.78]
[1727835628418,0.12502,146.21,146.2,2.7366]
[1727835633827,0.12502,146.21,146.14,80.94582489]
[1727835634038,0.12502,146.21,146.16,14.78]
[1727835634426,0.12502,146.21,146.2,2.7366]
[1727835637236,0.12502,146.21,146.17,14.78]
[1727835638335,0.12502,146.21,146.19,2.7367]
[1727835639834,0.12502,146.21,146.18,2.7369]
[1727835640036,0.12502,146.21,146.17,14.78]
[1727835640235,0.12502,146.21,146.14,80.94582489]
[1727835640438,0.12502,146.21,146.16,14.78]
[1727835640439,2.86152,146.21,146.16,14.78]
[1727835640641,0.12502,146.21,146.14,95.72582489]
[1727835641139,2.7366,146.2,146.16,2.7372]
[1727835641336,2.7366,146.2,146.14,95.72582489]
[1727835641538,2.86152,146.21,146.17,2.7371]
[1727835641744,0.12502,146.21,146.17,2.7371]
[1727835642038,0.12502,146.21,146.16,14.78]
[1727835642240,0.12502,146.21,146.19,2.7367]
[1727835642642,0.12502,146.21,146.2,2.7366]
[1727835645342,0.12502,146.21,146.18,14.78]
[1727835645535,0.12502,146.21,146.2,9.46]
[1727835646537,0.12502,146.21,146.2,12.1966]
[1727835652954,2.86162,146.21,146.17,2.7371]
[1727835653152,0.12502,146.21,146.18,9.46]
[1727835653553,0.12502,146.21,146.19,9.46]
[1727835653953,0.12502,146.21,146.19,12.1967]
[1727835656456,0.12502,146.21,146.14,80.94582489]
[1727835656457,0.12502,146.21,146.18,9.46]
[1727835656655,2.86162,146.21,146.18,9.46]
[1727835658562,2.7367,146.2,146.18,9.46]
[1727835658763,9.58502,146.21,146.16,12.1973]
[1727835659367,2.7367,146.2,146.16,12.1973]
[1727835659660,9.58502,146.21,146.16,9.46]
[1727835659849,2.7369,146.19,146.16,9.46]
[1727835660055,9.58502,146.21,146.16,9.46]
[1727835661259,2.7367,146.2,146.17,2.7372]
[1727835661569,2.7367,146.2,146.16,12.1973]
[1727835663557,9.46,146.2,146.14,80.94582489]
[1727835663759,9.46,146.18,146.14,80.94582489]
[1727835664160,2.7372,146.17,146.14,80.94582489]
[1727835664356,9.46,146.18,146.14,80.94582489]
[1727835664561,9.46,146.18,146.14,90.40582489]
[1727835664862,2.7373,146.17,146.14,90.40582489]
[1727835665765,9.46,146.15,146.05,73.88]
[1727835666063,9.46,146.15,146.1,9.46]
[1727835666257,9.46,146.14,146.09,9.58502]
[1727835666651,2.7379,146.13,146.09,12.32362]
[1727835667569,2.7379,146.13,146.09,9.58502]
[1727835667764,9.46,146.14,146.09,0.12502]
[1727835667970,2.7383,146.11,146.09,0.12502]
[1727835668965,12.1982,146.12,146.09,0.12502]
[1727835669363,2.7385,146.1,146.09,0.12502]
[1727835669557,12.1985,146.1,146.09,0.12502]
[1727835670365,9.46,146.1,146.09,0.12502]
[1727835672177,2.6545,146.13,146.09,0.12502]
[1727835672368,9.46,146.18,146.12,9.46]
[1727835672564,9.46,146.18,146.14,9.46]
[1727835672761,2.7372,146.17,146.14,9.46]
[1727835673271,2.7372,146.17,146.14,12.1977]
[1727835673761,9.46,146.18,146.15,2.7374]
[1727835674363,3.9444,146.2,146.16,2.7373]
[1727835674568,13.4044,146.2,146.16,9.46]
[1727835675066,13.4044,146.2,146.17,2.737]
[1727835675262,3.9444,146.2,146.16,9.46]
[1727835675666,3.9444,146.2,146.17,2.737]
[1727835675858,1.3325,146.2,146.16,9.46]
[1727835676164,9.58502,146.21,146.19,2.7368]
[1727835676873,9.58502,146.21,146.17,9.46]
[1727835677376,12.32162,146.21,146.17,12.197]
[1727835677969,9.58502,146.21,146.17,2.737]
[1727835678274,2.7367,146.2,146.17,2.737]
[1727835678776,0.12502,146.21,146.17,9.46]
[1727835679276,0.12502,146.21,146.2,2.7366]
[1727835680066,0.12502,146.21,146.17,9.46]
[1727835680268,0.12502,146.21,146.16,9.46]
[1727835680574,9.46,146.19,146.13,9.46]
[1727835680765,2.7371,146.18,146.14,2.7376]
[1727835680962,9.46,146.19,146.14,2.7376]
[1727835681273,2.7371,146.18,146.14,2.7376]
[1727835682576,2.737,146.19,146.15,2.7374]
[1727835686177,0.12502,146.21,146.16,14.79]
[1727835687074,0.12502,146.21,146.18,2.7369]
[1727835688266,0.12502,146.21,146.14,14.79]
[1727835688573,14.91502,146.21,146.12,95.75186942]
[1727835689066,14.91502,146.21,146.12,80.96186942]
[1727835689266,14.91502,146.21,146.13,14.79]
[1727835689863,2.7369,146.19,146.15,2.7375]
[1727835690968,14.91502,146.21,146.13,14.79]
[1727835691270,1.3941,146.2,146.12,80.96186942]
[1727835691468,2.7666,146.2,146.12,80.96186942]
[1727835691667,1.3346,146.19,146.12,80.96186942]
[1727835691864,2.7371,146.18,146.14,2.7377]
[1727835692261,16.1246,146.19,146.13,2.7378]
[1727835692671,16.1246,146.19,146.12,80.96186942]
[1727835692873,2.7374,146.16,146.13,2.7379]
[1727835694082,2.7376,146.15,146.12,83.69986942]
[1727835694780,2.7379,146.14,146.12,80.96186942]
[1727835695874,14.79,146.18,146.12,80.96186942]
[1727835696070,2.7376,146.15,146.12,80.96186942]
[1727835696274,14.79,146.18,146.12,80.96186942]
[1727835696674,2.7378,146.14,146.12,80.96186942]
[1727835698774,2.7376,146.15,146.12,80.96186942]
[1727835698975,14.79,146.18,146.12,80.96186942]
[1727835699178,14.79,146.18,146.13,2.7378]
[1727835699974,2.7375,146.16,146.13,2.7378]
[1727835700880,2.7377,146.15,146.12,83.69986942]
[1727835701085,14.79,146.18,146.12,80.96186942]
[1727835701590,9.47,146.15,146.12,80.96186942]
[1727835702572,2.7378,146.14,146.12,80.96186942]
[1727835704785,9.47,146.14,146.09,9.59502]
[1727835705475,2.738,146.13,146.09,12.33362]
[1727835705675,9.47,146.14,146.09,9.59502]
[1727835706284,12.2078,146.14,146.1,2.7384]
[1727835707883,4.67806705,146.19,146.1,9.47]
[1727835708184,9.47,146.14,146.11,2.7382]
[1727835709277,12.2079,146.14,146.1,2.7384]
[1727835709581,12.2079,146.14,146.09,9.59502]
[1727835709977,12.2079,146.14,146.1,2.7384]
[1727835711680,9.47,146.13,146.1,2.7384]
[1727835712783,12.208,146.13,146.09,12.33362]
[1727835712977,12.208,146.13,146.09,9.59502]
[1727835714282,12.208,146.13,146.1,2.7384]
[1727835714283,9.47,146.13,146.1,2.7384]
[1727835716282,12.2079,146.13,146.1,2.7384]
[1727835720294,12.2079,146.13,146.09,12.33352]
[1727835720687,12.2079,146.13,146.09,9.59502]
[1727835721788,9.47,146.13,146.09,9.59502]
[1727835722000,1.3346,146.19,146.11,9.47]
[1727835722186,1.3346,146.19,146.12,9.47]
[1727835722384,2.7373,146.17,146.13,2.7379]
[1727835722596,9.47,146.17,146.12,9.47]
[1727835722795,9.47,146.15,146.11,9.47]
[1727835722983,4.72952936,146.19,146.1,9.47]
[1727835722984,9.47,146.14,146.1,9.47]
[1727835723189,9.47,146.14,146.09,9.59502]
[1727835723587,2.7381,146.13,146.09,12.33362]
[1727835723790,2.7381,146.13,146.09,2.86362]
[1727835723791,9.47,146.13,146.09,2.86362]
[1727835723994,9.47,146.11,146.09,0.12502]
[1727835724189,4.72952936,146.19,146.09,0.12502]
[1727835724190,9.47,146.1,146.09,0.12502]
[1727835725296,12.2085,146.1,146.09,0.12502]
[1727835725887,9.47,146.1,146.03,9.59502]
[1727835726093,12.209,146.08,146.03,9.59502]
[1727835726489,12.2093,146.06,146.03,0.12502]
[1727835726995,9.47,146.05,146.03,0.12502]
[1727835727195,9.47,146.04,146.03,0.12502]
[1727835727891,12.2096,146.04,146.03,0.12502]
[1727835729490,9.47,146.04,145.98,9.47]
[1727835729791,9.47,146.02,145.98,12.2107]
[1727835730391,9.47,146.01,145.97,0.12502]
[1727835730797,9.47,146.02,145.98,12.2106]
[1727835731587,9.47,146.02,145.98,2.7406]
[1727835731794,2.7405,145.99,145.97,0.12502]
[1727835731995,9.47,146.01,145.97,0.12502]
[1727835732293,9.47,146.01,145.97,9.59502]
[1727835733191,9.47,146.01,145.97,2.86592]
[1727835733393,9.47,146.01,145.97,0.12502]
[1727835733897,12.2103,146.01,145.97,0.12502]
[1727835734290,9.47,146.03,145.98,9.47]
[1727835734491,9.47,146.03,146.0,2.7403]
[1727835734697,76.6121,146.08,146.0,9.47]
[1727835734995,86.0821,146.08,146.04,2.7394]
[1727835735192,84.7219,146.08,146.04,12.2094]
[1727835736095,84.7219,146.08,146.02,12.2099]
[1727835736096,9.47,146.07,146.02,12.2099]
[1727835736701,9.47,146.07,146.04,2.7396]
[1727835737088,1.2919,146.08,146.02,9.47]
[1727835737296,10.7619,146.08,146.02,9.47]
[1727835737689,13.5009,146.08,146.04,2.7394]
[1727835738293,13.5009,146.08,146.02,9.47]
[1727835738294,10.7619,146.08,146.02,9.47]
[1727835739995,13.5008,146.08,146.02,9.47]
[1727835740306,10.7619,146.08,146.02,9.47]
[1727835740501,9.59502,146.09,146.05,2.7394]
[1727835741601,12.33372,146.09,146.05,2.7394]
[1727835743895,12.33372,146.09,146.06,2.7392]
[1727835743896,9.59502,146.09,146.06,2.7392]
[1727835744096,9.59502,146.09,146.05,9.47]
[1727835744097,0.12502,146.09,146.05,9.47]
[1727835745101,0.12502,146.09,146.06,2.7391]
[1727835745403,9.59502,146.09,146.03,9.47]
[1727835745802,9.47,146.07,146.03,9.47]
[1727835746307,9.47,146.07,146.04,2.7395]
[1727835746495,2.739,146.08,146.04,2.7395]
[1727835747900,9.59502,146.09,146.03,9.47]
[1727835748101,0.12502,146.09,146.05,9.47]
[1727835748607,2.86372,146.09,146.05,12.2093]
[1727835749404,12.33372,146.09,146.05,12.2093]
[1727835750304,12.2091,146.07,146.03,2.7397]
[1727835755597,12.2091,146.07,146.04,2.7396]
[1727835755799,0.12502,146.09,146.04,9.47]
[1727835756014,0.12502,146.09,146.06,9.47]
[1727835756222,0.12502,146.09,146.06,12.2091]
[1727835756510,0.12502,146.09,146.04,9.47]
[1727835756717,0.12502,146.09,146.03,9.47]
[1727835756718,9.47,146.08,146.03,9.47]
[1727835756906,9.47,146.08,146.03,12.2097]
[1727835757213,2.7392,146.07,146.03,12.2097]
[1727835757805,9.47,146.08,146.03,9.47]
[1727835758106,9.47,146.08,146.04,12.2096]
[1727835758107,12.2089,146.08,146.04,12.2096]
[1727835758314,9.59502,146.09,146.04,9.47]
[1727835758519,0.12502,146.09,146.06,12.2092]
[1727835758814,0.12502,146.09,146.06,9.47]
[1727835759513,0.12502,146.09,146.06,12.2091]
[1727835760312,0.12502,146.09,146.08,12.2089]
[1727835760505,0.12502,146.09,146.08,9.47]
[1727835760699,0.12502,146.09,146.07,9.47]
[1727835760900,9.47,146.08,145.98,0.6143]
[1727835761105,9.47,146.07,145.98,0.6143]
[1727835761301,2.7394,146.06,146.02,12.21]
[1727835761611,9.47,146.07,146.02,12.21]
[1727835762214,2.7393,146.06,146.02,12.21]
[1727835762614,2.7393,146.06,145.97,0.12502]
[1727835762615,9.47,146.06,145.97,0.12502]
[1727835762803,9.47,146.06,145.98,9.47]
[1727835762804,9.47,146.03,145.98,9.47]
[1727835763005,9.47,146.02,145.97,9.59502]
[1727835763512,2.7402,146.01,145.97,2.86592]
[1727835763809,2.7402,146.01,145.97,0.12502]
[1727835764208,14.8,146.04,145.97,0.12502]
[1727835764410,2.7399,146.03,145.97,0.12502]
[1727835765310,14.8,146.04,145.97,0.12502]
[1727835766411,2.7413,145.95,145.9,2.7422]
[1727835766614,14.8,145.98,145.88,3.46976703]
[1727835766615,14.8,145.96,145.88,3.46976703]
[1727835766806,14.8,145.96,145.86,15.4113]
[1727835767001,2.7414,145.95,145.88,2.7425]
[1727835767203,14.8,145.96,145.88,2.7425]
[1727835767709,2.7416,145.94,145.88,2.7425]
[1727835769315,2.7416,145.94,145.86,2.7428]
[1727835769316,2.7419,145.92,145.86,2.7428]
[1727835770317,2.7419,145.92,145.85,0.12502]
[1727835770318,14.8,145.92,145.85,0.12502]
[1727835770516,1.3781,145.91,145.85,2.86812]
[1727835771119,14.8,145.9,145.85,0.12502]
[1727835771509,2.7427,145.88,145.85,0.12502]
[1727835772418,14.8,145.9,145.85,0.12502]
[1727835772616,14.8,145.9,145.85,2.86802]
[1727835772914,1.3781,145.91,145.85,0.12502]
[1727835773114,4.1203,145.91,145.85,0.12502]
[1727835773719,4.1203,145.91,145.85,2.86812]
[1727835774715,1.3781,145.91,145.85,0.12502]
[1727835774919,74.0,145.92,145.86,14.8]
[1727835777215,17.5415,145.94,145.86,14.8]
[1727835777922,17.5415,145.94,145.89,2.7423]
[1727835780121,14.8,145.94,145.86,14.8]
[1727835780727,2.7417,145.93,145.88,2.7425]
[1727835783324,2.7421,145.91,145.87,2.7428]
[1727835783719,2.7421,145.91,145.85,0.12502]
[1727835783919,2.7421,145.91,145.86,2.7429]
[1727835784119,2.7421,145.91,145.85,0.12502]
[1727835785128,2.7423,145.9,145.86,2.7429]
[1727835785718,14.8,145.91,145.85,0.12502]
[1727835785927,4.0704,145.89,145.85,2.86822]
[1727835786626,2.7426,145.88,145.85,0.12502]
[1727835788231,16.128,145.89,145.85,2.86802]
[1727835788232,1.328,145.89,145.85,2.86802]
[1727835788627,1.328,145.89,145.85,0.12502]
[1727835789424,1.328,145.89,145.86,2.7429]
[1727835789626,1.328,145.89,145.85,0.12502]
[1727835790326,4.0706,145.89,145.85,0.12502]
[1727835791122,4.0706,145.89,145.85,2.86812]
[1727835791318,1.328,145.89,145.85,2.86812]
[1727835791524,1.328,145.89,145.85,0.12502]
[1727835791726,1.328,145.89,145.86,2.7429]
[1727835792725,1.328,145.89,145.86,2.743]
[1727835793138,1.328,145.89,145.85,0.12502]
[1727835793323,1.328,145.89,145.85,2.86812]
[1727835794333,4.0705,145.89,145.85,2.86812]
[1727835795231,1.328,145.89,145.86,2.743]
[1727835796331,4.0706,145.89,145.85,2.86822]
[1727835797237,1.328,145.89,145.85,0.12502]
[1727835798333,1.328,145.89,145.86,2.7429]
[1727835798728,1.328,145.89,145.85,0.12502]
[1727835799532,4.0705,145.89,145.85,0.12502]
[1727835799742,18.8705,145.89,145.85,0.12502]
[1727835799933,18.8705,145.89,145.85,2.86812]
[1727835800639,16.128,145.89,145.85,0.12502]
[1727835800835,2.7428,145.88,145.85,0.12502]
[1727835801027,16.128,145.89,145.85,0.12502]
[1727835801231,14.8,145.88,145.85,0.12502]
[1727835801438,2.743,145.86,145.81,81.11952489]
[1727835801741,9.48,145.83,145.81,81.11952489]
[1727835802437,9.48,145.83,145.81,83.86332489]
[1727835802939,2.7428,145.87,145.82,2.7436]
[1727835803132,9.48,145.85,145.82,2.7436]
[1727835803530,17.5528,145.87,145.82,2.7436]
[1727835803731,17.5528,145.87,145.81,81.11952489]
[1727835803934,17.5528,145.87,145.83,2.7435]
[1727835804135,17.5528,145.87,145.81,81.11952489]
[1727835804336,2.743,145.86,145.82,2.7437]
[1727835804531,2.743,145.86,145.81,81.11952489]
[1727835806349,2.743,145.86,145.82,2.7437]
[1727835811847,17.5528,145.87,145.81,2.7439]